bitfinex/quotes_SOLUSD_20241028
["timestamp","ask_amount","ask_price","bid_price","bid_amount"]
[1730154693944,23.776884,178.69,178.68,0.31286227]
[1730154696227,50.85529621,178.69,178.68,0.31286227]
[1730154697558,23.776884,178.69,178.68,0.31286227]
[1730154697847,50.85529621,178.69,178.68,0.31286227]
[1730154699649,6.6379,178.72,178.68,27.39127448]
[1730154699860,16.0531,178.75,178.7,27.07841221]
[1730154700145,27.07841221,178.71,178.68,0.31286227]
[1730154700325,27.07841221,178.69,178.68,0.31286227]
[1730154700530,21.7475,178.75,178.68,0.31286227]
[1730154700842,23.776884,178.74,178.68,0.31286227]
[1730154701649,23.776884,178.71,178.68,0.31286227]
[1730154702028,23.776884,178.72,178.68,0.31286227]
[1730154702329,40.7086852,178.72,178.68,0.31286227]
[1730154702648,16.0531,178.75,178.7,16.9318012]
[1730154703023,16.0531,178.75,178.71,16.9318012]
[1730154703325,16.0531,178.75,178.7,16.9318012]
[1730154703846,23.776884,178.74,178.7,16.9318012]
[1730154704019,23.776884,178.74,178.69,16.9318012]
[1730154704222,23.776884,178.72,178.68,0.31286227]
[1730154704426,40.7086852,178.72,178.68,0.31286227]
[1730154704831,23.776884,178.72,178.68,0.31286227]
[1730154706947,23.776884,178.74,178.69,16.9318012]
[1730154707154,23.776884,178.74,178.7,16.9318012]
[1730154707530,23.776884,178.74,178.69,16.9318012]
[1730154707734,23.776884,178.74,178.7,16.9318012]
[1730154708331,23.776884,178.74,178.68,17.24466347]
[1730154708655,23.776884,178.72,178.68,0.31286227]
[1730154709851,23.776884,178.72,178.7,16.9318012]
[1730154711038,40.7086852,178.73,178.68,0.31286227]
[1730154711237,23.776884,178.71,178.68,0.31286227]
[1730154712059,23.776884,178.69,178.68,0.31286227]
[1730154712251,40.7086852,178.69,178.68,0.31286227]
[1730154712560,23.776884,178.69,178.68,0.31286227]
[1730154718452,40.7086852,178.69,178.68,0.31286227]
[1730154719058,23.776884,178.69,178.68,0.31286227]
[1730154720377,23.776884,178.69,178.68,17.24466347]
[1730154720667,32.9849012,178.75,178.68,17.24466347]
[1730154720867,32.9849012,178.75,178.69,16.9318012]
[1730154721046,16.0531,178.75,178.71,16.9318012]
[1730154721474,6.5139,178.77,178.72,16.9318012]
[1730154722170,6.5139,178.77,178.73,16.9318012]
[1730154722952,23.776884,178.76,178.73,16.9318012]
[1730154723443,23.776884,178.76,178.72,16.9318012]
[1730154723853,23.776884,178.76,178.73,16.9318012]
[1730154724668,23.776884,178.76,178.72,16.9318012]
[1730154725159,15.7715,178.79,178.75,16.9318012]
[1730154725344,15.7715,178.79,178.74,16.9318012]
[1730154726665,23.776884,178.78,178.74,16.9318012]
[1730154726867,23.776884,178.78,178.76,16.9318012]
[1730154727067,16.9318012,178.83,178.77,16.9318012]
[1730154727380,16.9318012,178.82,178.76,16.9318012]
[1730154728275,23.776884,178.81,178.76,16.9318012]
[1730154728570,46.729984,178.76,178.68,0.31286227]
[1730154728777,16.9318012,178.74,178.68,17.24466347]
[1730154728951,46.729984,178.76,178.7,16.9318012]
[1730154728952,23.776884,178.73,178.7,16.9318012]
[1730154729155,39.8849012,178.76,178.68,0.31286227]
[1730154729156,23.776884,178.75,178.72,16.9318012]
[1730154729590,23.776884,178.75,178.74,16.9318012]
[1730154731664,16.4619,178.81,178.74,16.9318012]
[1730154731869,16.4619,178.81,178.77,16.9318012]
[1730154732265,16.4619,178.81,178.76,16.9318012]
[1730154732976,23.776884,178.8,178.76,16.9318012]
[1730154733654,23.776884,178.8,178.75,16.9318012]
[1730154734054,23.776884,178.8,178.76,16.9318012]
[1730154734270,23.776884,178.8,178.77,16.9318012]
[1730154734472,23.776884,178.8,178.76,16.9318012]
[1730154734853,23.776884,178.81,178.77,16.9318012]
[1730154735056,23.776884,178.81,178.8,16.9318012]
[1730154735469,23.776884,178.81,178.79,16.9318012]
[1730154735666,40.7086852,178.82,178.76,16.9318012]
[1730154735879,5.5907,178.87,178.73,6.6581]
[1730154735880,23.776884,178.78,178.73,16.9318012]
[1730154736090,40.7086852,178.78,178.72,16.9318012]
[1730154738869,15.0167,178.8,178.75,16.9318012]
[1730154739075,15.0167,178.8,178.76,16.9318012]
[1730154739477,31.9485012,178.8,178.75,16.9318012]
[1730154739682,31.9485012,178.8,178.74,16.9318012]
[1730154739886,16.9318012,178.78,178.72,16.9318012]
[1730154740094,16.9318012,178.77,178.71,16.9318012]
[1730154740261,23.776884,178.76,178.71,16.9318012]
[1730154741279,23.776884,178.74,178.69,16.9318012]
[1730154741484,40.7086852,178.74,178.68,17.24466347]
[1730154741960,23.776884,178.75,178.7,16.9318012]
[1730154743068,40.7086852,178.75,178.69,16.9318012]
[1730154744487,16.9318012,178.74,178.68,17.24466347]
[1730154744682,23.776884,178.73,178.69,16.9318012]
[1730154745000,40.7086852,178.74,178.69,0.97362557]
[1730154745164,23.776884,178.74,178.69,17.90542677]
[1730154745371,40.7086852,178.74,178.69,0.97362557]
[1730154745663,40.7086852,178.7,178.68,0.31286227]
[1730154745868,40.7086852,178.69,178.68,0.31286227]
[1730154746267,23.776884,178.69,178.68,0.31286227]
[1730154746488,40.7086852,178.69,178.68,0.31286227]
[1730154746669,23.776884,178.69,178.68,0.31286227]
[1730154750069,46.3048852,178.69,178.68,0.31286227]
[1730154750272,40.7086852,178.69,178.68,0.31286227]
[1730154751205,23.776884,178.69,178.68,0.31286227]
[1730154751495,40.7086852,178.69,178.68,0.31286227]
[1730154752568,23.776884,178.69,178.68,0.31286227]
[1730154753186,32.7375012,178.72,178.68,0.31286227]
[1730154753397,16.9318012,178.7,178.68,0.31286227]
[1730154754285,23.776884,178.69,178.68,0.31286227]
[1730154755897,15.8057,178.72,178.68,17.24466347]
[1730154756201,16.9318012,178.75,178.69,16.9318012]
[1730154757497,16.9318012,178.74,178.68,17.24466347]
[1730154757798,16.9318012,178.73,178.68,0.31286227]
[1730154757973,16.9318012,178.74,178.68,17.24466347]
[1730154758786,23.776884,178.73,178.68,17.24466347]
[1730154758981,23.776884,178.73,178.69,16.9318012]
[1730154759181,38.5634012,178.76,178.7,16.9318012]
[1730154759381,38.5634012,178.76,178.68,0.31286227]
[1730154759382,16.9318012,178.73,178.68,0.31286227]
[1730154759677,16.9318012,178.74,178.68,17.24466347]
[1730154760377,23.776884,178.73,178.68,17.24466347]
[1730154760801,23.776884,178.74,178.69,16.9318012]
[1730154762207,23.776884,178.75,178.7,16.9318012]
[1730154762383,23.776884,178.75,178.72,16.9318012]
[1730154762583,15.118,178.76,178.74,16.9318012]
[1730154762802,39.3058012,178.8,178.75,16.9318012]
[1730154763100,15.8606,178.8,178.76,16.9318012]
[1730154763305,16.9318012,178.83,178.77,16.9318012]
[1730154763479,16.9318012,178.82,178.77,16.9318012]
[1730154763680,22.374,178.84,178.79,16.9318012]
[1730154763882,22.374,178.84,178.8,16.9318012]
[1730154764081,15.8606,178.84,178.8,16.9318012]
[1730154764693,16.9318012,178.86,178.8,16.9318012]
[1730154764898,22.374,178.88,178.75,0.1]
[1730154764899,15.8606,178.88,178.81,16.9318012]
[1730154765112,32.7924012,178.88,178.82,16.9318012]
[1730154765494,16.9318012,178.87,178.81,16.9318012]
[1730154765692,16.9318012,178.86,178.8,16.9318012]
[1730154765896,16.9318012,178.84,178.78,16.9318012]
[1730154766221,23.776884,178.84,178.79,16.9318012]
[1730154767207,23.776884,178.8,178.75,16.9318012]
[1730154768101,23.776884,178.8,178.76,16.9318012]
[1730154768412,23.776884,178.81,178.77,16.9318012]
[1730154768587,23.776884,178.82,178.78,16.9318012]
[1730154768914,23.776884,178.83,178.79,16.9318012]
[1730154769113,23.776884,178.84,178.79,16.9318012]
[1730154769405,39.3709012,178.88,178.82,16.9318012]
[1730154770191,16.9318012,178.87,178.81,16.9318012]
[1730154770405,16.9318012,178.86,178.81,16.9318012]
[1730154770789,32.7924012,178.88,178.82,16.9318012]
[1730154771005,15.8606,178.88,178.83,16.9318012]
[1730154772016,23.776884,178.87,178.83,16.9318012]
[1730154774290,40.7086852,178.87,178.81,20.0]
[1730154774806,40.7086852,178.87,178.81,36.9318012]
[1730154774999,16.9318012,178.86,178.8,16.9318012]
[1730154775197,23.776884,178.85,178.8,16.9318012]
[1730154775404,40.7086852,178.85,178.79,16.9318012]
[1730154775593,23.776884,178.85,178.81,16.9318012]
[1730154775793,23.776884,178.87,178.82,16.9318012]
[1730154776201,15.8606,178.88,178.83,16.9318012]
[1730154776514,16.9318012,178.89,178.83,16.9318012]
[1730154776813,16.3539,178.93,178.88,16.9318012]
[1730154777512,16.9318012,178.92,178.86,16.9318012]
[1730154778012,23.776884,178.92,178.86,16.9318012]
[1730154778589,23.776884,178.92,178.87,16.9318012]
[1730154779693,40.7086852,178.92,178.86,16.9318012]
[1730154780084,23.776884,178.9,178.85,16.9318012]
[1730154780597,23.776884,178.85,178.75,0.1]
[1730154780788,16.9318012,178.83,178.73,7.6805]
[1730154781109,15.6491,178.85,178.74,0.1]
[1730154781307,23.776884,178.84,178.74,0.2]
[1730154782714,23.776884,178.84,178.74,20.2]
[1730154783299,23.776884,178.84,178.76,16.9318012]
[1730154783300,16.9318012,178.82,178.76,16.9318012]
[1730154783511,23.776884,178.81,178.76,16.9318012]
[1730154783817,40.7086852,178.81,178.76,20.0]
[1730154784315,23.776884,178.81,178.76,36.9318012]
[1730154784904,16.9318012,178.84,178.78,16.9318012]
[1730154785111,23.776884,178.83,178.78,16.9318012]
[1730154786296,23.776884,178.83,178.74,17.0318012]
[1730154786297,16.9318012,178.8,178.74,16.9318012]
[1730154786619,23.776884,178.79,178.74,16.9318012]
[1730154787296,23.776884,178.8,178.75,16.9318012]
[1730154788695,40.7086852,178.8,178.74,16.9318012]
[1730154789212,23.776884,178.81,178.76,16.9318012]
[1730154789406,23.776884,178.82,178.77,16.9318012]
[1730154789913,40.7086852,178.82,178.76,16.9318012]
[1730154791719,15.6491,178.85,178.81,16.9318012]
[1730154792308,16.9318012,178.89,178.83,16.9318012]
[1730154793521,33.4416012,178.9,178.84,16.9318012]
[1730154793922,16.9318012,178.87,178.81,16.9318012]
[1730154794125,16.9318012,178.84,178.78,16.9318012]
[1730154794416,16.9318012,178.82,178.76,16.9318012]
[1730154794628,16.9318012,178.81,178.75,16.9318012]
[1730154794797,23.776884,178.79,178.74,16.9318012]
[1730154795001,23.776884,178.79,178.75,16.9318012]
[1730154795204,23.776884,178.8,178.75,16.9318012]
[1730154795617,23.776884,178.75,178.71,0.9732839]
[1730154795917,23.776884,178.73,178.7,16.9318012]
[1730154796123,23.776884,178.78,178.72,16.9318012]
[1730154796301,40.7086852,178.78,178.72,16.9318012]
[1730154796605,27.06743065,178.76,178.7,27.06743065]
[1730154796922,23.776884,178.75,178.71,27.06743065]
[1730154797303,23.776884,178.76,178.71,27.06743065]
[1730154798719,50.84431465,178.76,178.7,27.06743065]
[1730154799096,23.776884,178.74,178.69,27.06743065]
[1730154799500,50.84431465,178.74,178.68,27.38029292]
[1730154799803,23.776884,178.72,178.68,27.38029292]
[1730154800126,23.776884,178.73,178.68,27.38029292]
[1730154800606,16.5098,178.72,178.68,0.31286227]
[1730154801128,16.5098,178.72,178.68,27.38029292]
[1730154801421,16.5098,178.72,178.68,0.31286227]
[1730154802021,16.5098,178.72,178.7,27.06743065]
[1730154802238,42.84753065,178.77,178.71,27.06743065]
[1730154802400,15.7801,178.77,178.73,27.06743065]
[1730154802904,15.7801,178.77,178.72,27.06743065]
[1730154803825,23.776884,178.76,178.71,27.06743065]
[1730154804206,23.776884,178.76,178.72,27.06743065]
[1730154804812,23.776884,178.76,178.68,0.31286227]
[1730154804813,15.7801,178.77,178.73,27.06743065]
[1730154805016,21.8568,178.82,178.76,27.06743065]
[1730154805217,15.7801,178.82,178.8,27.06743065]
[1730154805726,49.12073065,178.87,178.81,27.06743065]
[1730154806230,22.0533,178.87,178.83,27.06743065]
[1730154807232,15.7801,178.87,178.83,27.06743065]
[1730154807597,15.7801,178.87,178.84,27.06743065]
[1730154808526,15.7801,178.87,178.83,27.06743065]
[1730154808725,15.7801,178.87,178.84,27.06743065]
[1730154808929,15.7801,178.87,178.83,27.06743065]
[1730154809104,23.776884,178.86,178.83,27.06743065]
[1730154809512,23.776884,178.86,178.82,27.06743065]
[1730154809721,27.06743065,178.85,178.79,27.06743065]
[1730154810032,23.776884,178.86,178.83,27.06743065]
[1730154810720,15.7801,178.87,178.84,27.06743065]
[1730154811718,15.7801,178.87,178.83,27.06743065]
[1730154814413,15.7801,178.87,178.82,27.06743065]
[1730154814655,50.84431465,178.86,178.81,27.06743065]
[1730154814942,23.776884,178.84,178.79,27.06743065]
[1730154815106,23.776884,178.84,178.8,27.06743065]
[1730154815312,23.776884,178.84,178.82,27.06743065]
[1730154815946,23.776884,178.84,178.8,27.06743065]
[1730154816121,23.776884,178.85,178.8,27.06743065]
[1730154818466,23.776884,178.85,178.8,16.89938816]
[1730154820246,40.67627216,178.81,178.77,20.0]
[1730154820425,23.776884,178.79,178.74,16.89938816]
[1730154820846,23.776884,178.79,178.73,16.89938816]
[1730154821143,23.776884,178.79,178.75,16.89938816]
[1730154821935,40.67627216,178.8,178.74,16.89938816]
[1730154822333,23.776884,178.78,178.73,16.89938816]
[1730154822938,23.776884,178.76,178.72,36.89938816]
[1730154823346,40.67627216,178.77,178.72,20.0]
[1730154824635,23.776884,178.75,178.71,36.89938816]
[1730154824944,23.776884,178.76,178.71,36.89938816]
[1730154825654,23.776884,178.76,178.72,16.89938816]
[1730154825829,23.776884,178.77,178.72,16.89938816]
[1730154827042,16.89938816,178.76,178.72,20.0]
[1730154827243,23.776884,178.77,178.72,36.89938816]
[1730154827539,23.776884,178.77,178.74,16.89938816]
[1730154830137,23.776884,178.77,178.73,16.89938816]
[1730154830457,23.776884,178.77,178.74,20.0]
[1730154831432,23.776884,178.77,178.72,16.89938816]
[1730154831743,23.776884,178.77,178.73,20.0]
[1730154831944,40.67627216,178.77,178.72,20.0]
[1730154832156,16.89938816,178.76,178.7,16.89938816]
[1730154832346,23.776884,178.75,178.71,20.0]
[1730154833037,23.776884,178.75,178.71,36.89938816]
[1730154833235,23.776884,178.76,178.73,20.0]
[1730154833443,23.776884,178.77,178.73,36.89938816]
[1730154834146,16.89938816,178.76,178.7,16.89938816]
[1730154834343,23.776884,178.75,178.71,20.0]
[1730154835142,23.776884,178.71,178.68,0.31286227]
[1730154836143,23.776884,178.73,178.69,16.89938816]
[1730154836341,23.776884,178.73,178.71,16.89938816]
[1730154836542,23.776884,178.76,178.72,36.89938816]
[1730154836857,39.63648816,178.78,178.72,36.89938816]
[1730154836858,23.776884,178.77,178.72,36.89938816]
[1730154837440,16.89938816,178.76,178.72,20.0]
[1730154837858,23.776884,178.75,178.72,20.0]
[1730154838863,23.776884,178.77,178.72,36.89938816]
[1730154839075,40.67627216,178.77,178.72,36.89938816]
[1730154839442,40.67627216,178.77,178.71,16.89938816]
[1730154839666,40.67627216,178.77,178.72,20.0]
[1730154839848,40.67627216,178.77,178.72,16.89938816]
[1730154840256,39.63648816,178.78,178.73,36.89938816]
[1730154840455,39.63648816,178.78,178.74,16.89938816]
[1730154840456,22.7371,178.78,178.74,16.89938816]
[1730154841965,23.776884,178.77,178.74,16.89938816]
[1730154843144,23.776884,178.77,178.75,16.89938816]
[1730154843464,23.776884,178.81,178.77,20.0]
[1730154843675,22.3423,178.82,178.78,16.89938816]
[1730154844563,39.24168816,178.82,178.78,20.0]
[1730154844953,23.776884,178.81,178.76,16.89938816]
[1730154845858,23.776884,178.81,178.77,16.89938816]
[1730154846367,23.776884,178.81,178.78,16.89938816]
[1730154847071,32.22098816,178.86,178.81,20.0]
[1730154847275,15.3216,178.86,178.83,16.89938816]
[1730154847445,32.22098816,178.91,178.85,16.89938816]
[1730154847648,15.3216,178.91,178.86,36.89938816]
[1730154848172,32.22098816,178.91,178.86,20.0]
[1730154848352,15.3216,178.91,178.88,36.89938816]
[1730154848542,15.3216,178.91,178.88,20.0]
[1730154848948,15.3216,178.91,178.87,20.0]
[1730154849571,23.776884,178.9,178.87,36.89938816]
[1730154849849,23.776884,178.9,178.87,20.0]
[1730154853651,23.776884,178.9,178.87,16.89938816]
[1730154854059,23.776884,178.9,178.88,20.0]
[1730154856960,40.67627216,178.9,178.85,16.89938816]
[1730154857177,23.776884,178.9,178.85,16.89938816]
[1730154858157,23.776884,178.9,178.88,16.89938816]
[1730154858474,23.776884,178.9,178.88,20.0]
[1730154858975,23.776884,178.9,178.86,16.89938816]
[1730154859272,23.776884,178.9,178.87,20.0]
[1730154860273,15.3216,178.91,178.88,16.89938816]
[1730154860466,23.776884,178.9,178.88,20.0]
[1730154860663,40.67627216,178.9,178.79,7.5634]
[1730154860873,40.67627216,178.88,178.82,16.89938816]
[1730154861173,23.776884,178.83,178.78,16.89938816]
[1730154861363,23.776884,178.83,178.7,7.5013]
[1730154861364,23.776884,178.81,178.7,7.5013]
[1730154861563,40.67627216,178.81,178.75,16.89938816]
[1730154861768,23.776884,178.79,178.74,16.89938816]
[1730154861971,40.67627216,178.79,178.73,16.89938816]
[1730154862153,40.67627216,178.79,178.72,16.89938816]
[1730154862154,16.89938816,178.78,178.72,16.89938816]
[1730154862474,23.776884,178.77,178.72,16.89938816]
[1730154862852,23.776884,178.79,178.74,16.89938816]
[1730154863079,23.776884,178.8,178.76,16.89938816]
[1730154863253,23.776884,178.81,178.77,20.0]
[1730154863452,23.776884,178.81,178.77,36.89938816]
[1730154863674,40.67627216,178.81,178.77,20.0]
[1730154863876,40.67627216,178.81,178.75,16.89938816]
[1730154863877,40.67627216,178.79,178.73,16.89938816]
[1730154864056,40.67627216,178.79,178.74,20.0]
[1730154864752,40.67627216,178.79,178.73,16.89938816]
[1730154866180,40.67627216,178.79,178.74,20.0]
[1730154866373,23.776884,178.77,178.72,16.89938816]
[1730154866575,23.776884,178.77,178.72,20.0]
[1730154866576,40.67627216,178.77,178.72,20.0]
[1730154866756,23.776884,178.75,178.71,20.0]
[1730154867277,23.776884,178.75,178.69,0.97354844]
[1730154867463,5.5931,178.79,178.69,0.97354844]
[1730154867464,23.776884,178.73,178.69,20.97354844]
[1730154867665,23.776884,178.73,178.7,16.89938816]
[1730154867863,23.776884,178.75,178.71,20.0]
[1730154868071,40.67627216,178.75,178.71,20.0]
[1730154868476,40.67627216,178.75,178.7,20.0]
[1730154868772,23.776884,178.75,178.7,36.89938816]
[1730154869077,23.776884,178.77,178.72,16.89938816]
[1730154869253,16.89938816,178.76,178.7,16.89938816]
[1730154869459,23.776884,178.77,178.71,20.0]
[1730154869666,23.776884,178.75,178.71,20.0]
[1730154872385,23.776884,178.76,178.72,20.0]
[1730154872583,40.67627216,178.76,178.72,20.0]
[1730154872790,23.776884,178.76,178.72,20.0]
[1730154873165,23.776884,178.76,178.72,36.89938816]
[1730154873483,16.89938816,178.81,178.75,16.89938816]
[1730154873689,16.89938816,178.78,178.74,20.0]
[1730154873988,16.89938816,178.79,178.74,20.0]
[1730154874502,16.89938816,178.78,178.74,20.0]
[1730154874780,23.776884,178.77,178.74,20.0]
[1730154876791,23.776884,178.77,178.73,20.0]
[1730154877674,40.67627216,178.75,178.69,16.89938816]
[1730154877878,40.67627216,178.75,178.7,20.0]
[1730154879201,16.89938816,178.72,178.68,0.31286227]
[1730154879374,23.776884,178.71,178.68,0.31286227]
[1730154879787,23.776884,178.72,178.68,0.31286227]
[1730154880500,23.776884,178.72,178.69,16.89938816]
[1730154880800,23.776884,178.75,178.7,36.89938816]
[1730154881778,23.776884,178.76,178.71,16.89938816]
[1730154881978,40.67627216,178.72,178.68,0.31286227]
[1730154882197,40.67627216,178.7,178.68,0.31286227]
[1730154882407,40.67627216,178.69,178.68,0.31286227]
[1730154884092,23.776884,178.69,178.68,0.31286227]
[1730154884473,40.67627216,178.69,178.68,0.31286227]
[1730154886995,23.776884,178.69,178.68,0.31286227]
[1730154887297,16.89938816,178.73,178.68,20.31286227]
[1730154887879,16.89938816,178.72,178.68,20.31286227]
[1730154888084,16.89938816,178.72,178.68,0.31286227]
[1730154888487,23.776884,178.71,178.68,0.31286227]
[1730154889495,40.67627216,178.71,178.68,0.31286227]
[1730154889903,23.776884,178.69,178.68,0.31286227]
[1730154890199,56.30667216,178.69,178.68,0.31286227]
[1730154890387,39.407284,178.69,178.68,0.31286227]
[1730154891904,56.30667216,178.69,178.68,0.31286227]
[1730154892215,39.407284,178.69,178.68,0.31286227]
[1730154899118,23.776884,178.69,178.68,0.31286227]
[1730154900393,23.776884,178.69,178.68,17.21225043]
[1730154900710,23.776884,178.72,178.68,17.21225043]
[1730154901516,23.776884,178.72,178.69,16.89938816]
[1730154901706,16.89938816,178.77,178.71,16.89938816]
[1730154901909,16.5416,178.78,178.74,16.89938816]
[1730154902233,16.89938816,178.76,178.71,16.89938816]
[1730154902802,16.89938816,178.77,178.71,16.89938816]
[1730154903107,33.44098816,178.78,178.72,16.89938816]
[1730154904303,16.5416,178.78,178.75,16.89938816]
[1730154904812,16.89938816,178.82,178.76,16.89938816]
[1730154905022,38.90828816,178.83,178.7,0.2]
[1730154905212,22.0089,178.83,178.79,16.89938816]
[1730154905593,15.4956,178.83,178.79,16.89938816]
[1730154906124,21.3648,178.87,178.82,16.89938816]
[1730154906330,16.89938816,178.86,178.8,16.89938816]
[1730154906616,38.26418816,178.87,178.81,16.89938816]
[1730154907000,16.89938816,178.86,178.8,16.89938816]
[1730154907192,38.26418816,178.87,178.81,16.89938816]
[1730154907905,23.776884,178.86,178.81,16.89938816]
[1730154908110,23.776884,178.86,178.82,16.89938816]
[1730154908900,23.776884,178.86,178.81,16.89938816]
[1730154909417,40.67627216,178.86,178.79,16.89938816]
[1730154909622,23.776884,178.84,178.79,16.89938816]
[1730154910404,23.776884,178.85,178.8,16.89938816]
[1730154911299,23.776884,178.85,178.81,16.89938816]
[1730154911994,23.776884,178.83,178.78,16.89938816]
[1730154912307,23.776884,178.81,178.76,16.89938816]
[1730154912816,23.776884,178.81,178.74,16.89938816]
[1730154913004,23.776884,178.78,178.73,16.89938816]
[1730154913197,23.776884,178.76,178.71,16.89938816]
[1730154914000,23.776884,178.77,178.74,16.89938816]
[1730154914704,23.776884,178.77,178.68,0.31286227]
[1730154914705,23.776884,178.77,178.76,16.89938816]
[1730154914901,23.776884,178.81,178.76,16.89938816]
[1730154915101,23.776884,178.81,178.79,16.89938816]
[1730154915316,31.97578816,178.86,178.8,16.89938816]
[1730154915499,15.0764,178.86,178.81,16.89938816]
[1730154915709,15.0764,178.86,178.74,16.89938816]
[1730154915710,16.89938816,178.85,178.8,16.89938816]
[1730154916216,16.89938816,178.85,178.79,16.89938816]
[1730154916426,16.89938816,178.81,178.75,16.89938816]
[1730154916596,40.67627216,178.8,178.74,16.89938816]
[1730154916804,16.89938816,178.79,178.74,16.89938816]
[1730154917010,23.776884,178.78,178.74,16.89938816]
[1730154917828,23.776884,178.79,178.75,16.89938816]
[1730154917995,23.776884,178.8,178.76,16.89938816]
[1730154918203,23.776884,178.81,178.77,16.89938816]
[1730154918502,40.67627216,178.81,178.75,16.89938816]
[1730154919117,16.89938816,178.78,178.72,16.89938816]
[1730154919306,23.776884,178.77,178.72,16.89938816]
[1730154920007,40.67627216,178.77,178.71,16.89938816]
[1730154920206,23.776884,178.77,178.72,16.89938816]
[1730154920606,40.67627216,178.77,178.72,16.89938816]
[1730154922327,23.776884,178.74,178.69,16.89938816]
[1730154922504,16.89938816,178.73,178.68,0.31286227]
[1730154923130,23.776884,178.69,178.68,0.31286227]
[1730154923338,40.67627216,178.69,178.68,0.31286227]
[1730154923507,23.776884,178.69,178.68,0.31286227]
[1730154923706,40.67627216,178.69,178.68,0.31286227]
[1730154925926,23.776884,178.69,178.68,0.31286227]
[1730154926905,40.67627216,178.69,178.68,0.31286227]
[1730154928432,23.776884,178.69,178.68,0.31286227]
[1730154930121,40.67627216,178.69,178.68,0.31286227]
[1730154933144,23.776884,178.69,178.68,0.31286227]
[1730154933306,32.10418816,178.7,178.68,0.31286227]
[1730154933633,15.2048,178.7,178.68,0.31286227]
[1730154935630,23.776884,178.69,178.68,0.31286227]
[1730154936214,40.67627216,178.69,178.68,0.31286227]
[1730154941539,23.776884,178.69,178.68,0.31286227]
[1730154942224,15.2048,178.7,178.68,0.31286227]
[1730154942426,33.33178816,178.74,178.69,16.89938816]
[1730154942630,16.4324,178.74,178.69,16.89938816]
[1730154942832,33.33178816,178.74,178.69,16.89938816]
[1730154943940,23.776884,178.73,178.69,16.89938816]
[1730154945649,23.776884,178.71,178.68,0.31286227]
[1730154946139,16.89938816,178.73,178.68,0.31286227]
[1730154946140,23.776884,178.72,178.68,0.31286227]
[1730154946322,23.776884,178.73,178.7,16.89938816]
[1730154947222,23.776884,178.73,178.69,16.89938816]
[1730154947933,23.776884,178.73,178.68,17.21225043]
[1730154948238,40.67627216,178.73,178.68,0.31286227]
[1730154949143,23.776884,178.71,178.68,0.31286227]
[1730154949333,23.776884,178.73,178.68,17.21225043]
[1730154949736,16.4324,178.74,178.7,16.89938816]
[1730154951144,23.776884,178.73,178.7,16.89938816]
[1730154951445,23.776884,178.73,178.71,16.89938816]
[1730154951746,23.776884,178.73,178.7,16.89938816]
[1730154952123,23.776884,178.73,178.69,16.89938816]
[1730154952340,23.776884,178.73,178.7,20.0]
[1730154952944,40.67627216,178.73,178.68,0.31286227]
[1730154953452,16.89938816,178.72,178.68,0.31286227]
[1730154953748,16.89938816,178.71,178.68,0.31286227]
[1730154954051,40.67627216,178.7,178.68,0.31286227]
[1730154954724,40.67627216,178.69,178.68,0.31286227]
[1730154957046,23.776884,178.69,178.68,0.31286227]
[1730154958849,16.89938816,178.7,178.68,0.31286227]
[1730154959151,16.89938816,178.72,178.68,0.31286227]
[1730154960427,23.776884,178.71,178.68,0.31286227]
[1730154963348,40.67627216,178.71,178.68,0.31286227]
[1730154963949,40.67627216,178.69,178.68,0.31286227]
[1730154965831,57.22027216,178.69,178.62,5.0]
[1730154966072,16.89938816,178.65,178.62,5.0]
[1730154966575,16.89938816,178.66,178.62,5.0]
[1730154967352,6.0123,178.67,178.62,5.0]
[1730154967353,16.89938816,178.65,178.62,5.0]
[1730154967563,16.89938816,178.66,178.62,5.0]
[1730154967878,23.776884,178.65,178.62,5.0]
[1730154968649,16.89938816,178.65,178.62,5.0]
[1730154968941,23.776884,178.64,178.62,5.0]
[1730154970454,23.776884,178.65,178.62,5.0]
[1730154971775,34.61647703,178.63,178.62,5.0]
[1730154971948,23.776884,178.63,178.62,5.0]
[1730154972554,34.61647703,178.63,178.6,30.33956462]
[1730154972971,10.83959303,178.65,178.6,30.33956462]
[1730154973383,10.83959303,178.63,178.6,30.33956462]
[1730154973570,26.77949303,178.61,178.6,30.33956462]
[1730154973873,26.77949303,178.61,178.59,0.5991325]
[1730154974061,15.9399,178.61,178.59,0.5991325]
[1730154974558,23.776884,178.6,178.59,17.54191926]
[1730154974744,23.776884,178.6,178.59,23.98826696]